fUSD/lending_fUSD_20250202
["ID","MTS","AMOUNT","RATE_DAILY","PERIOD"]
[351272001,1738504298876,-397.98519691,0.00011798,2]
[351272002,1738504298886,-1513.68,0.00011798,2]
[351272003,1738504298895,-500.0,0.00011798,2]
[351272004,1738504298904,-500.0,0.00011798,2]
[351272005,1738504298914,-4399.71,0.00011798,2]
[351272006,1738504298924,-4399.71,0.00011798,2]
[351272007,1738504298934,-500.0,0.00011799,2]
[351272008,1738504298945,-500.0,0.00011799,2]
[351272009,1738504298955,-268.30256042,0.00011799,2]
[351272010,1738504298964,-517.51046104,0.00011799,2]
[351272011,1738504298973,-522.38947628,0.00011799,2]
[351272012,1738504298982,-500.0,0.00011799,2]
[351272013,1738504298990,-563.36805747,0.00011799,2]
[351272014,1738504299000,-515.1910054,0.00011799,2]
[351272015,1738504299009,-515.23547303,0.00011799,2]
[351272016,1738504299019,-500.62124811,0.00011799,2]
[351272017,1738504299027,-500.0,0.00011799,2]
[351272018,1738504299036,-500.0,0.00011799,2]
[351272019,1738504299046,-500.0,0.00011799,2]
[351272020,1738504299055,-464.24365569,0.00011799,2]
[351272021,1738504299065,-500.0,0.00011799,2]
[351272022,1738504299074,-500.0,0.00011799,2]
[351272023,1738504299084,-500.0,0.00011799,2]
[351272024,1738504299093,-500.0,0.00011799,2]
[351272025,1738504299102,-505.45188928,0.00011799,2]
[351272026,1738504299111,-500.0,0.00011799,2]
[351272027,1738504299119,-500.0,0.00011799,2]
[351272028,1738504299128,-500.0,0.00011799,2]
[351272029,1738504299137,-500.0,0.00011799,2]
[351272030,1738504299147,-511.04725979,0.00011799,2]
[351272031,1738504299156,-509.99660074,0.00011799,2]
[351272032,1738504299166,-500.0,0.00011799,2]
[351272033,1738504299179,-500.0,0.00011799,2]
[351272034,1738504299188,-500.75389893,0.00011799,2]
[351272035,1738504299198,-504.03796373,0.00011799,2]
[351272036,1738504299208,-509.32367822,0.00011799,2]
[351272037,1738504299218,-500.0,0.00011799,2]
[351272038,1738504299229,-503.80524063,0.00011799,2]
[351272039,1738504299238,-500.0,0.00011799,2]
[351272040,1738504299247,-500.0,0.00011799,2]
[351272041,1738504299258,-500.0,0.00011799,2]
[351272042,1738504299267,-500.0,0.00011799,2]
[351272043,1738504299276,-378.75253445,0.00011799,2]
[351272044,1738504299285,-500.0,0.00011799,2]
[351272045,1738504299295,-500.0,0.00011799,2]
[351272046,1738504299305,-500.0,0.00011799,2]
[351272047,1738504299315,-561.64990941,0.00011799,2]
[351272048,1738504299325,-319.04554753,0.00011799,2]
[351272049,1738504299335,-500.0,0.00011799,2]
[351272050,1738504299345,-500.0,0.00011799,2]
[351272051,1738504299355,-500.0,0.00011799,2]
[351272052,1738504299364,-316.32761356,0.00011799,2]
[351272053,1738504299374,-500.0,0.00011799,2]
[351272054,1738504299384,-286.24339082,0.00011799,2]
[351272055,1738504299394,-500.0,0.00011799,2]
[351272056,1738504299404,-564.14041231,0.00011799,2]
[351272057,1738504299414,-649.11625946,0.00011799,2]
[351272058,1738504299485,-548.81559558,0.00011799,2]
[351272059,1738504299495,-415.92022984,0.00011799,2]
[351272060,1738504299505,-500.0,0.00011799,2]
[351272061,1738504299515,-524.83275998,0.00011799,2]
[351272062,1738504299525,-500.0,0.00011799,2]
[351272063,1738504299535,-500.91415884,0.00011799,2]
[351272064,1738504299545,-500.0,0.00011799,2]
[351272065,1738504299554,-500.0,0.00011799,2]
[351272066,1738504299564,-511.3312512,0.00011799,2]
[351272067,1738504299574,-500.0,0.00011799,2]
[351272068,1738504299583,-500.0,0.00011799,2]
[351272069,1738504299592,-235.05279851,0.00011799,2]
[351272070,1738504299602,-500.0,0.00011799,2]
[351272071,1738504299611,-500.0,0.00011799,2]
[351272072,1738504299620,-500.0,0.00011799,2]
[351272073,1738504299630,-500.0,0.00011799,2]
[351272074,1738504299640,-500.0,0.00011799,2]
[351272075,1738504299649,-500.0,0.00011799,2]
[351272076,1738504299659,-500.0,0.00011799,2]
[351272077,1738504299669,-500.0,0.00011799,2]
[351272078,1738504299679,-500.0,0.00011799,2]
[351272079,1738504299688,-500.0,0.00011799,2]
[351272080,1738504299699,-500.0,0.00011799,2]
[351272081,1738504299709,-500.0,0.00011799,2]
[351272082,1738504299718,-500.0,0.00011799,2]
[351272083,1738504299728,-500.0,0.00011799,2]
[351272084,1738504299738,-500.0,0.00011799,2]
[351272085,1738504299747,-500.0,0.00011799,2]
[351272086,1738504299756,-500.0,0.00011799,2]
[351272087,1738504299766,-500.0,0.00011799,2]
[351272088,1738504299776,-500.0,0.00011799,2]
[351272089,1738504299785,-202.93245154,0.00011799,2]
[351272090,1738504299794,-500.0,0.00011799,2]
[351272091,1738504299803,-500.0,0.00011799,2]
[351272092,1738504299811,-500.0,0.00011799,2]
[351272093,1738504299821,-300.0,0.00011799,2]
[351272094,1738504299830,-500.0,0.00011799,2]
[351272095,1738504299840,-500.0,0.00011799,2]
[351272096,1738504299849,-500.0,0.00011799,2]
[351272097,1738504299859,-500.0,0.00011799,2]
[351272098,1738504299869,-500.0,0.00011799,2]
[351272099,1738504299879,-500.0,0.00011799,2]
[351272100,1738504299888,-500.0,0.00011799,2]
[351272101,1738504299898,-500.0,0.00011799,2]
[351272102,1738504299908,-500.0,0.00011799,2]
[351272103,1738504299917,-158.99835379,0.00011799,2]
[351272104,1738504299927,-500.0,0.00011799,2]
[351272105,1738504299937,-500.0,0.00011799,2]
[351272106,1738504299947,-642.01056069,0.00011799,2]
[351272107,1738504299957,-500.0,0.00011799,2]
[351272108,1738504299967,-500.0,0.00011799,2]
[351272109,1738504299977,-500.0,0.00011799,2]
[351272110,1738504299987,-537.9325059,0.00011799,2]
[351272111,1738504299997,-180.23137708,0.00011799,2]
[351272112,1738504300007,-500.0,0.00011799,2]
[351272113,1738504300017,-500.0,0.00011799,2]
[351272114,1738504300027,-219.30088448,0.00011799,2]
[351272115,1738504300036,-500.0,0.00011799,2]
[351272116,1738504300045,-500.0,0.00011799,2]
[351272117,1738504300054,-502.17817491,0.00011799,2]
[351272118,1738504300064,-519.98324668,0.00011799,2]
[351272119,1738504300074,-500.0,0.00011799,2]
[351272120,1738504300084,-500.0,0.00011799,2]
[351272121,1738504300094,-500.0,0.00011799,2]
[351272122,1738504300104,-500.0,0.00011799,2]
[351272123,1738504300114,-500.0,0.00011799,2]
[351272124,1738504300124,-500.0,0.00011799,2]
[351272125,1738504300133,-500.0,0.00011799,2]
[351272126,1738504300143,-500.0,0.00011799,2]
[351272127,1738504300152,-500.0,0.00011799,2]
[351272128,1738504300161,-500.0,0.00011799,2]
[351272129,1738504300173,-717.56,0.00011799,2]
[351272130,1738504300183,-506.869141,0.00011799,2]
[351272131,1738504300193,-1753.47,0.00011799,2]
[351272132,1738504300203,-1461.75,0.00011799,2]
[351272133,1738504300213,-500.0,0.00011799,2]
[351272134,1738504300224,-2272.63,0.00011799,2]
[351272135,1738504300234,-500.0,0.00011799,2]
[351272136,1738504300243,-500.0,0.00011799,2]
[351272137,1738504300255,-2739.59,0.00011799,2]
[351272138,1738504300266,-1714.38,0.00011799,2]
[351272139,1738504300275,-521.26,0.00011799,2]
[351272140,1738504300285,-750.49,0.00011799,2]
[351272141,1738504300294,-1419.27,0.00011799,2]
[351272142,1738504300304,-974.81,0.00011799,2]
[351272143,1738504300314,-500.0,0.00011799,2]
[351272144,1738504300323,-500.0,0.00011799,2]
[351272145,1738504300333,-500.0,0.00011799,2]
[351272146,1738504300344,-500.0,0.00011799,2]
[351272147,1738504300352,-1422.15,0.00011799,2]
[351272148,1738504300362,-543.74,0.00011799,2]
[351272149,1738504300371,-1154.16,0.00011799,2]
[351272150,1738504300380,-1296.35,0.00011799,2]
[351272151,1738504300389,-500.0,0.00011799,2]
[351272152,1738504300398,-254.2237686,0.00011799,2]
[351272153,1738504300408,-1513.68,0.00011799,2]
[351272154,1738504300417,-1799.46,0.00011799,2]
[351272155,1738504300426,-1436.28,0.00011799,2]
[351272156,1738504300435,-234.70496853,0.00011799,2]
[351272157,1738504300445,-852.75029274,0.00011799,2]
[351272158,1738504300896,-268.22970726,0.00011799,2]
[351272159,1738504300906,-500.0,0.00011799,2]
[351272160,1738504300916,-710.95,0.00011799,2]
[351272161,1738504300925,-2122.07,0.00011799,2]
[351272162,1738504300935,-1049.12,0.00011799,2]
[351272163,1738504300946,-1244.35,0.00011799,2]
[351272164,1738504300956,-500.0,0.00011799,2]
[351272165,1738504300965,-2331.22,0.00011799,2]
[351272166,1738504300975,-500.0,0.00011799,2]
[351272167,1738504300985,-4399.71,0.00011799,2]
[351272168,1738504300995,-2187.23,0.00011799,2]
[351272169,1738504301008,-2795.52,0.00011799,2]
[351272170,1738504301017,-2413.6,0.00011799,2]
[351272171,1738504301028,-1639.86,0.00011799,2]
[351272172,1738504301041,-809.01,0.00011799,2]
[351272173,1738504301051,-645.98,0.00011799,2]
[351272174,1738504301061,-955.6,0.00011799,2]
[351272175,1738504301071,-3192.17,0.00011799,2]
[351272176,1738504301081,-1493.74,0.00011799,2]
[351272177,1738504301091,-1829.87932674,0.00011799,2]
[351272178,1738504301440,-307.04309223,0.00011799,2]
[351272179,1738504304778,3570.34893598,0.00012,10]
[351272181,1738504381681,500.0,0.00010958,7]
[351272182,1738504381933,500.0,0.00011095,7]
[351272183,1738504382259,500.0,0.00011232,7]
[351272184,1738504382617,500.0,0.00011369,7]
[351272185,1738504382862,500.0,0.00011506,7]
[351272186,1738504383120,500.0,0.00011643,7]
[351272187,1738504383366,500.0,0.0001178,7]
[351272188,1738504383694,500.0,0.00011917,7]
[351272189,1738504383996,500.0,0.00012054,7]
[351272190,1738504384256,500.0,0.00012191,7]
[351272191,1738504384596,457.72498957,0.00012328,7]
[351272192,1738504601505,517.03098013,0.00023,120]
[351272193,1738504686789,1032.91623543,0.00023,120]
[351272194,1738504701568,168.29,8.089e-05,2]
[351272196,1738504810807,179.0,0.00016658,30]
[351272197,1738504956842,500.0,0.00023,120]
[351272198,1738505012015,25269.18,0.00012219,7]
[351272200,1738505144600,1020.01,8.219e-05,2]
[351272211,1738505336365,2111.8707,9.858e-05,2]
[351272215,1738505361981,1000.0,9.865e-05,2]
[351272222,1738505405292,250.0,9.884e-05,2]
[351272223,1738505408001,413.27,9.877e-05,2]
[351272224,1738505432175,-196.27547794,9.93e-05,2]
[351272225,1738505432184,-300.0,9.957e-05,2]
[351272226,1738505432194,-7988.37461443,9.958e-05,2]
[351272227,1738505432205,-858.11057195,9.958e-05,2]
[351272228,1738505432233,-7474.08481362,9.958e-05,2]
[351272229,1738505432243,-200.0,0.00010031,2]
[351272230,1738505432254,-548.5,0.00010137,2]
[351272231,1738505432264,-639.94,0.00010393,2]
[351272232,1738505432275,-175.68,0.00010396,2]
[351272233,1738505432285,-1020.01,0.00010472,2]
[351272234,1738505432295,-900.0,0.000105,3]
[351272235,1738505432305,-880.4,0.000105,2]
[351272236,1738505432315,-1900.0,0.000106,3]
[351272237,1738505432326,-2800.0,0.000107,3]
[351272238,1738505432337,-196.27547793,0.000107,2]
[351272239,1738505432347,-3879.5507,0.00010758,2]
[351272240,1738505432356,-150.0,0.00010799,2]
[351272241,1738505432367,-858.1105,0.000108,2]
[351272242,1738505432376,-266.4177,0.000108,2]
[351272243,1738505432387,-31616.084,0.000108,2]
[351272244,1738505432396,-3800.0,0.000108,3]
[351272245,1738505432408,-155.622,0.00010857,2]
[351272246,1738505432419,-1883.443,0.00010857,2]
[351272247,1738505432429,-1757.08999373,0.00010858,2]
[351272248,1738505432442,-3911.85324089,0.00010858,2]
[351272249,1738505432478,-492.176,0.00010858,2]
[351272250,1738505432490,-1868.59057875,0.00010858,2]
[351272552,1738505438239,-28203.60718663,0.00010858,2]
[351272553,1738505438249,-500.0,0.00010858,2]
[351272554,1738505438259,-1039.5049,0.00010858,2]
[351272555,1738505438268,-2934.9827,0.00010858,2]
[351272556,1738505438278,-5000.0,0.00010858,2]
[351272557,1738505438287,-2500.0,0.00010858,2]
[351272558,1738505438297,-160.67467265,0.00010895,2]
[351272559,1738505438306,-4700.0,0.000109,3]
[351272560,1738505438316,-420.0,0.00010953,2]
[351272561,1738505438326,-500.0,0.00010957,2]
[351272562,1738505438335,-186.10066525,0.00010957,2]
[351272563,1738505438344,-500.0,0.00010957,2]
[351272564,1738505438354,-261.57660175,0.00010957,2]
[351272565,1738505438363,-500.0,0.00010957,2]
[351272566,1738505438372,-162.8107481,0.00010957,2]
[351272567,1738505438381,-500.0,0.00010958,2]
[351272568,1738505438390,-500.0,0.00010958,2]
[351272569,1738505438399,-500.0,0.00010958,2]
[351272570,1738505438410,-620.35519919,0.00010958,2]
[351272571,1738505438419,-500.0,0.00010958,2]
[351272572,1738505438428,-545.76522344,0.00010958,2]
[351272573,1738505438438,-500.0,0.00010958,2]
[351272574,1738505438448,-500.0,0.00010958,2]
[351272576,1738505438457,-278.04356115,0.00010958,2]
[351272578,1738505438466,-500.0,0.00010958,2]
[351272580,1738505438476,-554.31762092,0.00010958,2]
[351272582,1738505438486,-500.0,0.00010958,2]
[351272584,1738505438495,-500.0,0.00010958,2]
[351272586,1738505438505,-500.0,0.00010958,2]
[351272588,1738505438518,-500.0,0.00010958,2]
[351272590,1738505438527,-500.0,0.00010958,2]
[351272592,1738505438536,-500.0,0.00010958,2]
[351272594,1738505438545,-375.00924363,0.00010958,2]
[351272596,1738505438555,-502.95059892,0.00010958,2]
[351272598,1738505438565,-500.84956122,0.00010958,2]
[351272600,1738505438575,-559.46,0.00010958,2]
[351272602,1738505438584,-269.25879919,0.00010958,2]
[351272604,1738505438594,-500.0,0.00010958,2]
[351272606,1738505438603,-500.0,0.00010958,2]
[351272608,1738505438613,-500.0,0.00010958,2]
[351272610,1738505438622,-501.54291805,0.00010958,2]
[351272612,1738505438632,-500.0,0.00010958,2]
[351272614,1738505438641,-500.0,0.00010958,2]
[351272616,1738505438651,-505.55314967,0.00010958,2]
[351272618,1738505438661,-500.0,0.00010958,2]
[351272620,1738505438671,-803.7,0.00010958,2]
[351272623,1738505438680,-500.0,0.00010958,2]
[351272625,1738505438689,-500.0,0.00010958,2]
[351272627,1738505438699,-500.0,0.00010958,2]
[351272629,1738505438708,-500.0,0.00010958,2]
[351272631,1738505438718,-500.0,0.00010958,2]
[351272633,1738505438727,-500.0,0.00010958,2]
[351272635,1738505438736,-500.0,0.00010958,2]
[351272637,1738505438745,-500.0,0.00010958,2]
[351272639,1738505438755,-500.0,0.00010958,2]
[351272641,1738505438764,-500.0,0.00010958,2]
[351272643,1738505438774,-500.0,0.00010958,2]
[351272645,1738505438785,-500.0,0.00010958,2]
[351272647,1738505438794,-500.0,0.00010958,2]
[351272649,1738505438803,-801.06,0.00010958,2]
[351272651,1738505438812,-500.0,0.00010958,2]
[351272653,1738505438821,-500.0,0.00010958,2]
[351272655,1738505438830,-500.0,0.00010958,2]
[351272657,1738505438839,-503.14793318,0.00010958,2]
[351272659,1738505438848,-500.0,0.00010958,2]
[351272660,1738505438857,-773.23,0.00010958,2]
[351272661,1738505438866,-500.0,0.00010958,2]
[351272662,1738505438875,-500.0,0.00010958,2]
[351272663,1738505438884,-500.0,0.00010958,2]
[351272664,1738505438893,-500.0,0.00010958,2]
[351272665,1738505438903,-500.0,0.00010958,2]
[351272666,1738505438912,-759.9,0.00010958,2]
[351272667,1738505438921,-500.0,0.00010958,2]
[351272668,1738505438931,-1260.15,0.00010958,2]
[351272669,1738505438940,-419.78358057,0.00010958,2]
[351272670,1738505438950,-589.03,0.00010958,2]
[351272671,1738505438959,-500.0,0.00010958,2]
[351272672,1738505438968,-500.0,0.00010958,2]
[351272673,1738505438977,-300.0,0.00010958,2]
[351272674,1738505438988,-505.38776975,0.00010958,2]
[351272675,1738505438997,-500.0,0.00010958,2]
[351272676,1738505439007,-500.0,0.00010958,2]
[351272677,1738505439016,-500.0,0.00010958,2]
[351272678,1738505439025,-500.0,0.00010958,2]
[351272679,1738505439034,-500.0,0.00010958,2]
[351272680,1738505439044,-511.12681305,0.00010958,2]
[351272681,1738505439055,-500.0,0.00010958,2]
[351272682,1738505439065,-500.0,0.00010958,2]
[351272683,1738505439075,-168.0532958,0.00010958,2]
[351272684,1738505439084,-500.0,0.00010958,2]
[351272685,1738505439095,-500.0,0.00010958,2]
[351272686,1738505439105,-1063.41,0.00010958,2]
[351272687,1738505439114,-673.02,0.00010958,2]
[351272688,1738505439124,-500.0,0.00010958,2]
[351272689,1738505439134,-500.0,0.00010958,2]
[351272690,1738505439143,-500.0,0.00010958,2]
[351272691,1738505439152,-500.0,0.00010958,2]
[351272692,1738505439162,-500.0,0.00010958,2]
[351272693,1738505439171,-500.0,0.00010958,2]
[351272694,1738505439180,-821.68,0.00010958,2]
[351272695,1738505439190,-500.0,0.00010958,2]
[351272696,1738505439199,-549.88,0.00010958,2]
[351272697,1738505439208,-500.0,0.00010958,2]
[351272698,1738505439218,-502.45165761,0.00010958,2]
[351272699,1738505439230,-500.0,0.00010958,2]
[351272700,1738505439239,-500.0,0.00010958,2]
[351272701,1738505439249,-500.0,0.00010958,2]
[351272702,1738505439258,-500.0,0.00010958,2]
[351272703,1738505439268,-500.0,0.00010958,2]
[351272704,1738505439278,-703.15,0.00010958,2]
[351272705,1738505439287,-500.0,0.00010958,2]
[351272706,1738505439297,-500.0,0.00010958,2]
[351272707,1738505439307,-500.0,0.00010958,2]
[351272708,1738505439317,-500.0,0.00010958,2]
[351272709,1738505439326,-828.9,0.00010958,2]
[351272710,1738505439336,-500.0,0.00010958,2]
[351272711,1738505439345,-500.0,0.00010958,2]
[351272712,1738505439354,-526.60618696,0.00010958,2]
[351272713,1738505439364,-500.0,0.00010958,2]
[351272714,1738505439374,-627.47,0.00010958,2]
[351272715,1738505439383,-731.11,0.00010958,2]
[351272716,1738505439393,-500.0,0.00010958,2]
[351272717,1738505439403,-500.0,0.00010958,2]
[351272718,1738505439412,-500.0,0.00010958,2]
[351272719,1738505439422,-500.0,0.00010958,2]
[351272720,1738505439431,-500.0,0.00010958,2]
[351272721,1738505439440,-500.0,0.00010958,2]
[351272722,1738505439450,-592.69,0.00010958,2]
[351272723,1738505439459,-500.0,0.00010958,2]
[351272724,1738505439469,-500.0,0.00010958,2]
[351272725,1738505439479,-500.0,0.00010958,2]
[351272726,1738505439490,-500.0,0.00010958,2]
[351272727,1738505439502,-500.0,0.00010958,2]
[351272728,1738505439514,-500.0,0.00010958,2]
[351272729,1738505439527,-500.0,0.00010958,2]
[351272730,1738505439538,-500.0,0.00010958,2]
[351272731,1738505439550,-500.0,0.00010958,2]
[351272732,1738505439561,-500.0,0.00010958,2]
[351272733,1738505439572,-500.0,0.00010958,2]
[351272734,1738505439582,-500.0,0.00010958,2]
[351272735,1738505439593,-625.97,0.00010958,2]
[351272736,1738505439604,-500.0,0.00010958,2]
[351272737,1738505439614,-500.0,0.00010958,2]
[351272738,1738505439624,-500.0,0.00010958,2]
[351272739,1738505439634,-500.0,0.00010958,2]
[351272740,1738505439643,-500.0,0.00010958,2]
[351272741,1738505439653,-500.0,0.00010958,2]
[351272742,1738505439663,-500.0,0.00010958,2]
[351272743,1738505439674,-500.0,0.00010958,2]
[351272744,1738505439684,-500.0,0.00010958,2]
[351272745,1738505439694,-500.0,0.00010958,2]
[351272746,1738505439704,-500.0,0.00010958,2]
[351272747,1738505439713,-500.0,0.00010958,2]
[351272748,1738505439723,-500.0,0.00010958,2]
[351272749,1738505439732,-500.0,0.00010958,2]
[351272750,1738505439742,-661.86,0.00010958,2]
[351272751,1738505439752,-552.57,0.00010958,2]
[351272752,1738505439761,-500.0,0.00010958,2]
[351272753,1738505439770,-3015.63,0.00010958,2]
[351272754,1738505439779,-369.40575271,0.00010958,2]
[351272755,1738505439789,-500.0,0.00010958,2]
[351272756,1738505439799,-500.0,0.00010958,2]
[351272757,1738505439810,-500.0,0.00010958,2]
[351272758,1738505439820,-500.0,0.00010958,2]
[351272759,1738505439829,-635.12,0.00010958,2]
[351272760,1738505439838,-511.08,0.00010958,2]
[351272761,1738505439848,-1112.86,0.00010958,2]
[351272762,1738505439857,-554.73019171,0.00010958,2]
[351272763,1738505439867,-910.85,0.00010958,2]
[351272764,1738505439876,-500.0,0.00010958,2]
[351272765,1738505439885,-501.06547943,0.00010958,2]
[351272766,1738505439894,-421.2897835,0.00010958,2]
[351272767,1738505439902,-500.0,0.00010958,2]
[351272768,1738505439911,-500.0,0.00010958,2]
[351272769,1738505439920,-500.0,0.00010958,2]
[351272770,1738505439929,-738.14,0.00010958,2]
[351272771,1738505439938,-500.0,0.00010958,2]
[351272772,1738505439948,-500.0,0.00010958,2]
[351272773,1738505439958,-500.0,0.00010958,2]
[351272774,1738505439968,-1482.76,0.00010958,2]
[351272775,1738505439977,-500.0,0.00010958,2]
[351272778,1738505439987,-500.0,0.00010958,2]
[351272781,1738505439996,-243.47573883,0.00010958,2]
[351272783,1738505440005,-545.77,0.00010958,2]
[351272784,1738505440015,-500.0,0.00010958,2]
[351272785,1738505440024,-500.0,0.00010958,2]
[351272786,1738505440034,-500.0,0.00010958,2]
[351272787,1738505440043,-735.2,0.00010958,2]
[351272788,1738505440052,-717.38,0.00010958,2]
[351272789,1738505440061,-500.0,0.00010958,2]
[351272790,1738505440071,-500.0,0.00010958,2]
[351272791,1738505440080,-500.0,0.00010958,2]
[351272792,1738505440090,-500.0,0.00010958,2]
[351272793,1738505440099,-500.0,0.00010958,2]
[351272794,1738505440109,-500.0,0.00010958,2]
[351272795,1738505440118,-2333.39,0.00010958,2]
[351272796,1738505440127,-500.0,0.00010958,2]
[351272797,1738505440136,-500.0,0.00010958,2]
[351272798,1738505440146,-500.0,0.00010958,2]
[351272799,1738505440155,-618.28,0.00010958,2]
[351272800,1738505440166,-500.0,0.00010958,2]
[351272801,1738505440176,-500.0,0.00010958,2]
[351272802,1738505440186,-500.0,0.00010958,2]
[351272803,1738505440195,-500.0,0.00010958,2]
[351272804,1738505440209,-500.0,0.00010958,2]
[351272805,1738505440219,-540.48161761,0.00010958,2]
[351272806,1738505440229,-500.0,0.00010958,2]
[351272807,1738505440238,-500.0,0.00010958,2]
[351272808,1738505440248,-2305.89,0.00010958,2]
[351272809,1738505440257,-584.56770077,0.00010958,2]
[351272810,1738505440267,-500.0,0.00010958,2]
[351272811,1738505440277,-703.3,0.00010958,2]
[351272812,1738505440287,-2217.46,0.00010958,2]
[351272813,1738505440297,-573.42,0.00010958,2]
[351272814,1738505440307,-500.0,0.00010958,2]
[351272815,1738505440316,-500.0,0.00010958,2]
[351272816,1738505440325,-500.0,0.00010958,2]
[351272817,1738505440335,-500.0,0.00010958,2]
[351272818,1738505440346,-2053.36,0.00010958,2]
[351272819,1738505440356,-1106.04,0.00010958,2]
[351272820,1738505440366,-508.52502765,0.00010958,2]
[351272821,1738505440375,-2139.13,0.00010958,2]
[351272822,1738505440386,-500.0,0.00010958,2]
[351272823,1738505440395,-511.78878663,0.00010958,2]
[351272824,1738505440405,-500.0,0.00010958,2]
[351272825,1738505440414,-500.0,0.00010958,2]
[351272826,1738505440424,-500.0,0.00010958,2]
[351272827,1738505440434,-1316.15,0.00010958,2]
[351272828,1738505440443,-500.0,0.00010958,2]
[351272829,1738505440452,-500.0,0.00010958,2]
[351272830,1738505440462,-500.0,0.00010958,2]
[351272831,1738505440472,-500.0,0.00010958,2]
[351272832,1738505440482,-500.0,0.00010958,2]
[351272834,1738505440492,-500.0,0.00010958,2]
[351272836,1738505440502,-500.0,0.00010958,2]
[351272837,1738505440514,-548.83,0.00010958,2]
[351272838,1738505440526,-500.0,0.00010958,2]
[351272839,1738505440536,-553.21,0.00010958,2]
[351272840,1738505440545,-500.0,0.00010958,2]
[351272841,1738505440556,-500.0,0.00010958,2]
[351272842,1738505440565,-525.3,0.00010958,2]
[351272843,1738505440574,-500.0,0.00010958,2]
[351272844,1738505440584,-500.0,0.00010958,2]
[351272845,1738505440594,-500.0,0.00010958,2]
[351272847,1738505440606,-2325.54,0.00010958,2]
[351272849,1738505440616,-1109.74,0.00010958,2]
[351272851,1738505440626,-500.44,0.00010958,2]
[351272853,1738505440635,-681.73,0.00010958,2]
[351272855,1738505440645,-500.0,0.00010958,2]
[351272857,1738505440655,-500.0,0.00010958,2]
[351272859,1738505440666,-500.0,0.00010958,2]
[351272861,1738505440675,-503.90519159,0.00010958,2]
[351272863,1738505440685,-677.93,0.00010958,2]
[351272865,1738505440694,-500.0,0.00010958,2]
[351272867,1738505440704,-513.34,0.00010958,2]
[351272869,1738505440713,-500.0,0.00010958,2]
[351272871,1738505440723,-500.0,0.00010958,2]
[351272873,1738505440732,-310.6827416,0.00010958,2]
[351272875,1738505440741,-500.0,0.00010958,2]
[351272877,1738505440751,-1154.2,0.00010958,2]
[351272879,1738505440760,-2022.69,0.00010958,2]
[351272881,1738505440769,-500.0,0.00010958,2]
[351272883,1738505440778,-500.0,0.00010958,2]
[351272885,1738505440788,-500.0,0.00010958,2]
[351272887,1738505440797,-685.35,0.00010958,2]
[351272889,1738505440808,-500.0,0.00010958,2]
[351272891,1738505440820,-500.0,0.00010958,2]
[351272893,1738505440829,-500.0,0.00010958,2]
[351272895,1738505440838,-500.0,0.00010958,2]
[351272897,1738505440848,-500.0,0.00010958,2]
[351272899,1738505440857,-500.0,0.00010958,2]
[351272901,1738505440866,-500.0,0.00010958,2]